fUSD/lending_fUSD_20240115
["ID","MTS","AMOUNT","RATE_DAILY","PERIOD"]
[311716331,1705349476976,-209.69025,0.0003315,7]
[311716332,1705349476986,-151.0,0.0003315,7]
[311716333,1705349476995,-162.219555,0.0003315,7]
[311716334,1705349477005,-162.219555,0.0003315,7]
[311716335,1705349477014,-279.118182,0.0003315,7]
[311716336,1705349477023,-151.0,0.0003315,7]
[311716337,1705349477032,-151.0,0.0003315,7]
[311716338,1705349477041,-238.995721,0.0003315,7]
[311716339,1705349477050,-238.995721,0.0003315,7]
[311716340,1705349477060,-2366.11933805,0.00033179,7]
[311716341,1705349477069,-1096.60984167,0.00033179,7]
[311716342,1705349477079,-1061.56749428,0.00033179,7]
[311716343,1705349477088,-1395.16650713,0.00033179,7]
[311716344,1705349477098,-1317.8852201,0.00033179,7]
[311716345,1705349477107,-1000.0,0.000332,6]
[311716346,1705349477116,-2000.0,0.00033205,2]
[311716347,1705349477126,-200.0,0.00033205,2]
[311716348,1705349477135,-500.5348009,0.00033216,2]
[311716349,1705349477145,-4161.2038187,0.00033216,2]
[311716350,1705349477154,-31253.55809832,0.00033233,15]
[311716351,1705349477163,-1356.0,0.00033239,2]
[311716352,1705349477173,-945.0,0.00033239,2]
[311716353,1705349477182,-1853.0,0.00033239,2]
[311716354,1705349477191,-835.0,0.00033239,2]
[311716355,1705349477201,-1234.0,0.00033239,2]
[311716356,1705349477211,-299.75,0.00033239,2]
[311716357,1705349477220,-1251.0,0.00033239,2]
[311716358,1705349477230,-251.702242,0.00033244,7]
[311716359,1705349477239,-151.0,0.00033244,7]
[311716360,1705349477249,-233.60650054,0.0003327,7]
[311716361,1705349477258,-1000.0,0.000333,6]
[311716362,1705349477268,-154.62606636,0.00033307,2]
[311716363,1705349477279,-549.5343544,0.00033321,2]
[311716364,1705349477288,-4402.5641341,0.00033321,2]
[311716365,1705349477298,-97736.735461,0.00033321,2]
[311716366,1705349477308,-114264.3392451,0.00033321,2]
[311716367,1705349477317,-10251.433776,0.00033321,2]
[311716368,1705349477327,-11984.9849824,0.00033321,2]
[311716369,1705349477336,-540.5194654,0.00033321,2]
[311716370,1705349477346,-585.5627542,0.00033321,2]
[311716371,1705349477356,-151.0,0.00033321,7]
[311716372,1705349477365,-151.0,0.00033321,7]
[311716373,1705349477375,-151.0,0.00033321,7]
[311716374,1705349477385,-151.0,0.00033321,7]
[311716375,1705349477394,-162.219555,0.00033321,7]
[311716376,1705349477404,-162.219555,0.00033321,7]
[311716377,1705349477414,-2570.43496138,0.00033341,2]
[311716378,1705349477423,-1745061.45977715,0.00033344,2]
[311716379,1705349478476,-97485.87114306,0.00033344,2]
[311716380,1705349478488,-87954.66389934,0.00033344,2]
[311716381,1705349478499,-6740.94450831,0.00033344,2]
[311716382,1705349478515,-2318.44313815,0.00033344,2]
[311716383,1705349478527,-9012.78812622,0.00033344,2]
[311716384,1705349478538,-453.8784,0.00033344,2]
[311716385,1705349478549,-498.86026481,0.00033344,2]
[311716386,1705349478561,-54118.039635,0.00033344,2]
[311716387,1705349478572,-2030.05024149,0.00033344,2]
[311716388,1705349478584,-3264.94811256,0.00033344,2]
[311716389,1705349478615,-938.06556108,0.00033344,2]
[311716390,1705349478627,-1783.23346018,0.00033344,2]
[311716391,1705349478638,-2433.79377245,0.00033344,2]
[311716392,1705349478649,-2490.53561742,0.00033344,2]
[311716393,1705349478660,-10731.25,0.00033344,2]
[311716394,1705349478671,-44790.12445832,0.00033344,2]
[311716395,1705349478683,-2882.80816185,0.00033344,2]
[311716396,1705349478694,-688.09668176,0.00033344,2]
[311716397,1705349478705,-2159.10977032,0.00033344,2]
[311716398,1705349479322,-238.995721,0.00032876,7]
[311716399,1705349479332,-238.995721,0.0003315,7]
[311716400,1705349479341,-238.995721,0.0003315,7]
[311716401,1705349479350,-26126.510677,0.00033344,2]
[311716402,1705349479518,-1632.92621345,0.00033344,2]
[311716403,1705349480171,-463.22453082,0.00022802,2]
[311716404,1705349480182,-28649.67906918,0.00022802,2]
[311716405,1705349480191,-1556.50702925,0.0002283,2]
[311716406,1705349480202,-404.10391545,0.00027396,2]
[311716407,1705349480211,-6457.4,0.00031999,2]
[311716408,1705349480220,-1500.0,0.00032606,2]
[311716409,1705349480230,-1500.0,0.00032767,2]
[311716410,1705349480239,-500.0,0.00032876,2]
[311716411,1705349480248,-213461.2958952,0.00033344,2]
[311716412,1705349480275,-3226.87557519,0.00033344,2]
[311716416,1705349529648,159.1,0.00021754,2]
[311716417,1705349816340,-202.57156383,0.00022798,2]
[311716418,1705349816364,-4701.25313551,0.00022799,2]
[311716419,1705349816386,-312.00896411,0.000228,2]
[311716420,1705349816407,-1136.01929882,0.000228,2]
[311716421,1705349816432,-363.88006273,0.000228,2]
[311716422,1705349816458,-2296.02494857,0.00022801,2]
[311716423,1705349816480,-100000.0,0.00022802,2]
[311716429,1705349938665,268.13381279,0.00022901,2]
[311716430,1705350088738,155.15509998,0.00020611,2]
[311716432,1705350141498,-2296.02494857,0.00022406,2]
[311716433,1705350141518,-7779.55747498,0.00022407,2]
[311716434,1705350141538,-1526.26128218,0.00022408,2]
[311716435,1705350141559,-250.18803019,0.0002267,2]
[311716436,1705350141584,-2176.62447328,0.00022672,2]
[311716437,1705350141608,-480.2,0.000227,14]
[311716438,1705350141628,-527.1,0.00022764,2]
[311716439,1705350141648,-150.0,0.000229,2]
[311716440,1705350141668,-300.0,0.000229,2]
[311716441,1705350141688,-18948.40984176,0.00022901,2]
[311716442,1705350141708,-1897.75273507,0.00022901,2]
[311716443,1705350141728,-1104.86730331,0.00022901,2]
[311716444,1705350141749,-155.0,0.00022901,2]
[311716445,1705350141770,-5186.35262149,0.00022901,2]
[311716446,1705350141790,-14138.5782433,0.00022901,2]
[311716447,1705350141810,-282.90032781,0.00022901,2]
[311716448,1705350141831,-169.10360193,0.00022901,2]
[311716449,1705350141851,-156.62101118,0.00022901,2]
[311716450,1705350144259,156.71115107,0.00020611,2]
[311716451,1705350163116,13039.41121861,0.00020611,2]
[311716452,1705350163136,26060.13436013,0.00020611,2]
[311716460,1705350311500,250.0,0.000205,2]
[311716473,1705350457703,171.47,0.00016712,2]
[311716474,1705350477333,566.63,0.00021707,2]
[311716486,1705350631836,-1054.35016668,0.00023001,2]
[311716487,1705350631892,-1241.67478189,0.00023001,2]
[311716488,1705350631902,-51.98321811,0.00023002,2]
[311716489,1705350632858,-310.95398098,0.00023002,2]
[311716490,1705350632868,-328.55212695,0.00023003,2]
[311716491,1705350632877,-386.55515331,0.00023003,2]
[311716492,1705350632886,-109.9730317,0.00023004,5]
[311716506,1705350633208,-318.74363918,0.00023004,5]
[311716507,1705350633217,-372.04136223,0.00023004,2]
[311716508,1705350633229,-3097.25863777,0.00023004,2]
[311716509,1705350633238,-358.58,0.00023378,2]
[311716510,1705350633247,-174.71,0.00023396,2]
[311716511,1705350633256,-187.64,0.00023577,2]
[311716513,1705350633265,-150.0,0.00023652,2]
[311716514,1705350633274,-3123.01195947,0.00023653,2]
[311716515,1705350633283,-187.64,0.00023702,2]
[311716516,1705350633292,-187.64,0.00023826,2]
[311716517,1705350633301,-499.99,0.00023826,2]
[311716518,1705350633310,-1958.21,0.00023826,2]
[311716519,1705350633320,-156.12974773,0.000239,2]
[311716520,1705350633328,-2000.0,0.0002393,2]
[311716521,1705350633337,-187.64,0.0002395,2]
[311716522,1705350633346,-566.63,0.00023971,2]
[311716523,1705350633356,-762.26,0.00024,2]
[311716524,1705350633365,-201.0123456,0.00024,2]
[311716525,1705350633374,-2705.0,0.00024013,2]
[311716526,1705350633383,-187.64,0.00024074,2]
[311716527,1705350633392,-199.62,0.00024086,2]
[311716528,1705350633400,-262.9,0.00024109,2]
[311716529,1705350633410,-23900.0,0.00024195,2]
[311716530,1705350633419,-187.64,0.00024198,2]
[311716531,1705350633428,-150.0,0.00024278,2]
[311716532,1705350633437,-167.0,0.00024297,2]
[311716533,1705350633446,-187.64,0.00024322,2]
[311716534,1705350633455,-199.62,0.00024325,2]
[311716535,1705350633464,-187.64,0.00024446,2]
[311716536,1705350633473,-156.12974769,0.00024454,2]
[311716537,1705350633485,-199.62,0.00024563,2]
[311716538,1705350633494,-187.64,0.0002457,2]
[311716539,1705350633503,-250.0,0.00024658,2]
[311716540,1705350633512,-187.64,0.00024694,2]
[311716541,1705350633521,-967.67,0.00024762,2]
[311716542,1705350633531,-225.0,0.00024766,2]
[311716543,1705350633540,-199.62,0.00024802,2]
[311716544,1705350633549,-187.64,0.00024818,2]
[311716545,1705350633558,-1959.98756174,0.00024897,2]
[311716546,1705350633570,-2657.13168263,0.00024897,2]
[311716547,1705350633582,-1812.68072997,0.00024897,2]
[311716548,1705350633591,-247.96718941,0.00024897,2]
[311716549,1705350633600,-155.0,0.00024897,2]
[311716550,1705350633609,-431.11450683,0.00024897,2]
[311716551,1705350633619,-1000.0,0.00024898,2]
[311716552,1705350633628,-192.14041212,0.00024898,2]
[311716553,1705350633637,-1278.13193774,0.00024898,2]
[311716554,1705350633646,-155.28747022,0.00024898,2]
[311716555,1705350633655,-184.02329883,0.00024898,2]
[311716556,1705350633664,-156.84105949,0.00024898,2]
[311716557,1705350633673,-198.6778953,0.00024898,2]
[311716558,1705350633683,-522.61370155,0.00024898,2]
[311716559,1705350633692,-206.79487175,0.00024898,2]
[311716560,1705350633701,-3052.3554378,0.00024898,2]
[311716561,1705350633710,-163.88168135,0.00024898,2]
[311716562,1705350633719,-155.0,0.00024898,2]
[311716563,1705350633729,-155.0,0.00024898,2]
[311716564,1705350633739,-364.99858209,0.00024898,2]
[311716565,1705350633748,-215.73359013,0.00024898,2]
[311716566,1705350633757,-246.71680154,0.00024899,2]
[311716567,1705350633767,-315.01212787,0.00024899,2]
[311716568,1705350633776,-1429.55505232,0.00024899,2]
[311716569,1705350633785,-113522.095456,0.00024899,2]
[311716570,1705350633795,-2277.37819778,0.000249,2]
[311716571,1705350633818,-1542.78234516,0.000249,2]
[311716572,1705350633862,-5028.69970534,0.000249,2]
[311716573,1705350633874,-328.56219678,0.000249,2]
[311716574,1705350633886,-547.03,0.000249,2]
[311716575,1705350633905,-591.42977514,0.000249,2]
[311716576,1705350633917,-285.8344283,0.000249,2]
[311716580,1705350637913,-251.60714365,0.000249,2]
[311716581,1705350637937,-22200.11834323,0.000249,2]
[311716582,1705350637950,-323.0012525,0.000249,2]
[311716583,1705350637983,-66623.55661212,0.000249,2]
[311716584,1705350637993,-6217.8864,0.000249,2]
[311716585,1705350638002,-158.48766211,0.000249,2]
[311716586,1705350638012,-1203.90957308,0.000249,2]
[311716587,1705350638021,-187.64,0.00024942,2]
[311716588,1705350638030,-386.61135731,0.00024998,2]
[311716589,1705350638040,-2540.5711009,0.00024999,2]
[311716590,1705350638049,-374.83916764,0.00024999,2]
[311716591,1705350638058,-174.08653633,0.00025,2]
[311716592,1705350638067,-350.0,0.00025,3]
[311716593,1705350638077,-505444.87458687,0.00025,2]
[311716594,1705350638087,-400.08,0.00025,2]
[311716595,1705350638096,-9564.74,0.00025,2]
[311716596,1705350638105,-322.05,0.00025,2]
[311716597,1705350638114,-1582.64010755,0.00025,2]
[311716598,1705350638124,-303.27668532,0.00025,2]
[311716599,1705350638133,-693.1186857,0.00025,2]
[311716600,1705350638142,-1247.48098647,0.00025,2]
[311716601,1705350638152,-201.83579665,0.00025,2]
[311716603,1705350638161,-1070.18909292,0.00025,2]
[311716604,1705350638170,-167.20178626,0.00025,2]
[311716605,1705350638179,-387.44495424,0.00025,2]
[311716606,1705350638188,-650.0,0.00025,2]
[311716607,1705350638198,-156.12974769,0.00025008,2]
[311716608,1705350638207,-533.63137989,0.00025008,2]
[311716609,1705350638216,-199.62,0.0002504,2]
[311716611,1705350638226,-187.64,0.00025066,2]
[311716613,1705350638236,-187.64,0.00025191,2]
[311716615,1705350638245,-199.62,0.00025279,2]
[311716617,1705350638254,-187.64,0.00025315,2]
[311716619,1705350638263,-167.0,0.00025337,2]
[311716621,1705350638272,-187.64,0.00025439,2]
[311716625,1705350638282,-199.62,0.00025517,2]
[311716628,1705350638291,-156.12974769,0.00025562,2]
[311716631,1705350638300,-187.64,0.00025563,2]
[311716634,1705350638309,-187.64,0.00025687,2]
[311716636,1705350638318,-967.67,0.00025741,2]
[311716638,1705350638327,-199.62,0.00025756,2]
[311716640,1705350638337,-37622.0,0.000258,2]
[311716642,1705350638346,-187.64,0.00025811,2]
[311716644,1705350638355,-160.86,0.00025849,2]
[311716646,1705350638364,-187.64,0.00025935,2]
[311716648,1705350638374,-199.62,0.00025994,2]
[311716650,1705350638384,-5000.0,0.00026,2]
[311716653,1705350638394,-210.0,0.00026017,2]
[311716655,1705350638403,-150.0,0.00026079,2]
[311716657,1705350638412,-1203.90957305,0.00026103,3]
[311716659,1705350638422,-156.12974769,0.00026116,2]
[311716661,1705350638431,-225.0,0.00026136,2]
[311716663,1705350638440,-199.62,0.00026233,2]
[311716665,1705350638449,-566.63,0.00026235,2]
[311716667,1705350638460,-167.0,0.00026302,2]
[311716669,1705350638469,-199.62,0.00026471,2]
[311716671,1705350638482,-3119.28,0.00026548,2]
[311716673,1705350638491,-1860.34,0.00026575,2]
[311716675,1705350638500,-156.12974769,0.0002667,2]
[311716677,1705350638510,-155.2371007,0.00026701,2]
[311716679,1705350638519,-199.62,0.00026709,2]
[311716681,1705350638528,-967.67,0.00026719,2]
[311716683,1705350638538,-4439.81,0.00026864,2]
[311716685,1705350638547,-199.62,0.00026948,2]
[311716687,1705350638556,-400.0,0.00027,3]
[311716689,1705350638565,-129289.95553674,0.00027,2]
[311716691,1705350638576,-415.69843276,0.00027,2]
[311716692,1705350638585,-155.0,0.00027,2]
[311716693,1705350638594,-160.86,0.00027065,2]
[311716694,1705350638604,-1813.4,0.00027123,2]
[311716695,1705350638613,-1148.51912183,0.00027169,3]
[311716696,1705350638622,-175.64405785,0.0002718,3]
[311716697,1705350638631,-199.62,0.00027186,2]
[311716698,1705350638640,-178.01432854,0.00027191,3]
[311716699,1705350638649,-1189.43051664,0.00027214,3]
[311716700,1705350638658,-156.12974769,0.00027224,2]
[311716702,1705350638667,-225.70541151,0.00027237,3]
[311716704,1705350638676,-241.51297725,0.00027249,3]
[311716706,1705350638685,-329.00759739,0.00027261,3]
[311716708,1705350638694,-198.1282,0.00027295,2]
[311716710,1705350638703,-1203.90957305,0.00027307,3]
[311716712,1705350638712,-1306.17308962,0.00027394,2]
[311716714,1705350638721,-420.49,0.00027397,4]
[311716716,1705350638730,-23382.98,0.00027397,2]
[311716718,1705350638739,-33599.16,0.00027397,2]
[311716720,1705350638748,-15053.3,0.00027397,2]
[311716722,1705350638759,-250.0,0.00027397,2]
[311716724,1705350638768,-257.65174878,0.000274,2]
[311716726,1705350638777,-5689.32768707,0.000274,2]
[311716728,1705350638787,-3392.77,0.000274,2]
[311716730,1705350638797,-3392.77,0.000274,2]
[311716732,1705350638806,-3392.77,0.000274,2]
[311716734,1705350638815,-3392.77,0.000274,2]
[311716736,1705350638824,-3392.77,0.000274,2]
[311716738,1705350638834,-199.62,0.00027425,2]
[311716740,1705350638843,-167.0,0.00027427,2]
[311716742,1705350638853,-3119.28,0.00027515,2]
[311716744,1705350638862,-15053.3,0.00027556,2]
[311716746,1705350638871,-1000.0,0.0002756,2]
[311716748,1705350638880,-199.62,0.00027663,2]
[311716750,1705350638890,-967.67,0.00027697,2]
[311716752,1705350638899,-15053.3,0.00027714,2]
[311716755,1705350638909,-156.12974769,0.00027778,2]
[311716756,1705350638918,-5811.66,0.00027867,2]
[311716758,1705350638927,-5811.66,0.00027867,2]
[311716760,1705350638936,-5811.66,0.00027867,2]
[311716763,1705350638946,-5811.66,0.00027867,2]
[311716765,1705350638955,-5811.66,0.00027867,2]
[311716767,1705350638965,-5811.66,0.00027867,2]
[311716769,1705350638974,-5811.66,0.00027867,2]
[311716771,1705350638983,-5811.66,0.00027867,2]
[311716773,1705350638992,-5811.66,0.00027867,2]
[311716775,1705350639002,-5811.66,0.00027867,2]
[311716777,1705350639012,-15053.3,0.00027872,2]
[311716779,1705350639021,-199.62,0.00027902,2]
[311716781,1705350639032,-152.52963997,0.00027919,2]
[311716783,1705350639042,-150.0,0.00028,2]
[311716785,1705350639052,-202.92894676,0.00028,2]
[311716787,1705350639063,-688.02629954,0.00028,2]
[311716789,1705350639077,-200.0,0.00028,2]
[311716792,1705350639111,-15053.3,0.0002803,2]
[311716794,1705350639120,-735.01,0.0002807,2]
[311716796,1705350639130,-199.62,0.0002814,2]
[311716798,1705350639139,-3392.77,0.00028179,2]
[311716800,1705350639149,-15053.3,0.00028189,2]
[311716802,1705350639159,-160.86,0.00028281,2]
[311716804,1705350639170,-167.0,0.00028307,2]
[311716806,1705350639180,-156.12974769,0.00028332,2]
[311716808,1705350639191,-15053.3,0.00028347,2]
[311716810,1705350639201,-199.62,0.00028379,2]
[311716812,1705350639211,-3119.28,0.00028482,2]
[311716814,1705350639221,-566.63,0.00028498,2]
[311716816,1705350639231,-12286.20478265,0.000285,2]
[311716818,1705350639241,-15053.3,0.00028505,2]
[311716820,1705350639251,-1203.90957305,0.0002851,4]
[311716822,1705350639261,-165.92298533,0.00028576,2]
[311716824,1705350639271,-199.62,0.00028617,2]
[311716826,1705350639282,-293.0,0.00028619,2]
[311716828,1705350639291,-15053.3,0.00028664,2]
[311716830,1705350639301,-967.67,0.00028676,2]
[311716832,1705350639311,-942968.41275767,0.00028722,2]
[311716834,1705350639321,-5623.33756486,0.00028722,2]
[311716836,1705350639331,-1729.09587506,0.00028722,2]
[311716838,1705350639342,-254.58565054,0.00028722,2]
[311716840,1705350639354,-1000.0,0.00028767,2]
[311716841,1705350639367,-1000.0,0.00028767,2]
[311716844,1705350639378,-1000.0,0.00028767,2]
[311716845,1705350639388,-1000.0,0.00028767,2]
[311716848,1705350639398,-1000.0,0.00028767,2]
[311716849,1705350639409,-1000.0,0.00028767,2]
[311716852,1705350639420,-1000.0,0.00028767,2]
[311716854,1705350639431,-801.42,0.00028767,2]
[311716856,1705350639441,-3392.77,0.00028812,2]
[311716858,1705350639452,-3392.77,0.00028812,2]
[311716859,1705350639463,-3392.77,0.00028812,2]
[311716862,1705350639474,-3392.77,0.00028812,2]
[311716864,1705350639486,-15053.3,0.00028822,2]
[311716866,1705350639495,-156.12974769,0.00028885,2]
[311716868,1705350639504,-450.0,0.00029,3]
[311716870,1705350639513,-155.33306015,0.00029,2]
[311716872,1705350639522,-150.0,0.00029,2]
[311716874,1705350639532,-3000.0,0.00029,2]
[311716875,1705350639541,-3000.0,0.00029,2]
[311716878,1705350639550,-3000.0,0.00029,2]
[311716879,1705350639560,-3000.0,0.00029,2]
[311716891,1705350639654,-3000.0,0.00029,2]
[311716893,1705350639664,-3000.0,0.00029,2]
[311716895,1705350639673,-3000.0,0.00029,2]
[311716897,1705350639681,-3000.0,0.00029,2]
[311716900,1705350639691,-3000.0,0.00029,2]
[311716901,1705350639700,-3000.0,0.00029,2]
[311716904,1705350639709,-3000.0,0.00029,2]
[311716906,1705350639717,-3000.0,0.00029,2]
[311716908,1705350639726,-3000.0,0.00029,2]
[311716910,1705350639735,-3000.0,0.00029,2]
[311716912,1705350639743,-3000.0,0.00029,2]
[311716914,1705350639752,-3000.0,0.00029,2]
[311716916,1705350639761,-3000.0,0.00029,2]
[311716918,1705350639770,-3000.0,0.00029,2]
[311716920,1705350639779,-3000.0,0.00029,2]
[311716922,1705350639788,-3000.0,0.00029,2]
[311716924,1705350639797,-155.0,0.00029,2]
[311716926,1705350639806,-1000.0,0.0002912,2]
[311716928,1705350639815,-9124.1401041,0.00029189,2]
[311716930,1705350639824,-155.0,0.000292,2]
[311716932,1705350639833,-156.12974769,0.00029439,2]
[311716934,1705350639842,-3119.28,0.00029448,2]
[311716936,1705350639851,-160.86,0.00029497,2]
[311716938,1705350639860,-188.31609233,0.000295,3]
[311716940,1705350639869,-167.0,0.00029518,2]
[311716942,1705350639878,-150.0,0.00029548,2]
[311716944,1705350639887,-150.0,0.00029564,7]
[311716946,1705350639896,-150.0,0.00029564,7]
[311716948,1705350639904,-967.67,0.00029654,2]
[311716950,1705350639913,-205.0,0.00029657,2]
[311716952,1705350639922,-1000.0,0.00029697,2]
[311716954,1705350639931,-1203.90957305,0.00029714,4]
[311716956,1705350639940,-644.38771433,0.00029797,2]
[311716958,1705350639950,-175.32047182,0.000298,2]
[311716960,1705350639960,-390129.6452557,0.000298,4]
[311716962,1705350639974,-116658.64102071,0.000298,4]
[311716965,1705350639985,-130281.94517922,0.000298,4]
[311716967,1705350640000,-432.99651565,0.000298,4]
[311716970,1705350640012,-2733.36764432,0.000298,4]
[311716972,1705350640023,-10001.99998637,0.000298,4]
[311716974,1705350640035,-3170.94229169,0.000298,4]
[311716976,1705350640046,-344.77545433,0.000298,4]
[311717049,1705350640785,-15031.33546077,0.000298,4]
[311717076,1705350641037,-2801.0264405,0.000298,4]
[311717240,1705350642882,-2723.63901046,0.000298,4]
[311717243,1705350642908,-102433.05577028,0.000298,4]
[311717245,1705350642918,-156.12974769,0.00029993,2]
[311717247,1705350642927,-644.38771433,0.00029997,2]
[311717249,1705350642937,-202.81110037,0.0003,4]
[311717251,1705350642946,-155.0,0.0003,4]
[311717253,1705350642956,-462.13895835,0.0003,4]
[311717255,1705350642965,-445.8653535,0.0003,4]
[311717257,1705350642975,-8833.41799333,0.0003,4]
[311717259,1705350642984,-813.58442188,0.0003,4]
[311717261,1705350642993,-19012.00563948,0.0003,4]
[311717263,1705350643002,-72867.95281422,0.0003,4]
[311717265,1705350643011,-155.0,0.0003,4]
[311717267,1705350643021,-32708.10381551,0.0003,4]
[311717270,1705350643033,-4297.03666174,0.0003,4]
[311717272,1705350643046,-341.82,0.0003,4]
[311717276,1705350643072,-689.71803058,0.0003,4]
[311717280,1705350643108,-1207.136,0.0003,4]
[311717493,1705350646050,-201.96251754,0.00029799,2]
[311717494,1705350646059,-45675.97871137,0.0003,4]
[311717495,1705350646269,-223717.17980662,0.0003,4]
[311717496,1705350646278,-2000.0,0.0003,10]
[311717497,1705350646288,-152.08,0.0003,2]
[311717498,1705350646298,-152.08,0.0003,2]
[311717499,1705350646307,-152.08,0.0003,2]
[311717500,1705350646317,-157.76,0.0003,2]
[311717501,1705350646326,-1349.27355619,0.0003,2]
[311717503,1705350646339,-2650.72644381,0.0003,2]
[311717505,1705350646348,-150.0,0.00030096,2]
[311717508,1705350646358,-153.84,0.00030137,2]
[311717509,1705350646367,-150.0,0.00030223,2]
[311717510,1705350646376,-494.879,0.0003025,2]
[311717511,1705350646385,-1251.22455619,0.0003025,2]
[311717514,1705351359119,219.90355198,0.00021803,2]
[311717515,1705351399450,543.46,0.00021668,2]
[311717516,1705351828452,531.72,0.00021495,2]
[311717517,1705351832013,-579.59745,0.00022686,2]
[311717518,1705351832027,-1716.42749857,0.00022686,2]
[311717519,1705351832036,-58.61619908,0.00022686,2]
[311717520,1705351832048,-253.39276503,0.00022686,2]
[311717521,1705351832057,-346.60723497,0.00022687,2]
[311717522,1705351832070,-40.1602681,0.00022687,2]
[311717523,1705351832081,-300.1034,0.00022703,2]
[311717524,1705351832090,-163.88168135,0.000228,2]
[311717525,1705351832100,-150.0,0.00022801,2]
[311717526,1705351832109,-109.73421936,0.00022802,2]
[311717527,1705351832137,-19009.41134424,0.00022802,2]
[311717528,1705351832147,-1565.79,0.00023432,2]
[311717529,1705351832156,-200.0,0.00023436,2]
[311717530,1705351832165,-1849.28,0.00023462,2]
[311717531,1705351832174,-499.99,0.00023462,2]
[311717532,1705351832184,-150.99,0.00023462,2]
[311717533,1705351832194,-153.53,0.00023503,2]
[311717534,1705351832203,-216.17,0.00023586,2]
[311717535,1705351832213,-164.7,0.0002362,2]
[311717536,1705351832222,-151.27,0.00023661,2]
[311717537,1705351832232,-153.53,0.00023738,2]
[311717538,1705351832241,-531.72,0.00023759,2]
[311717539,1705351832250,-151.27,0.00023773,2]
[311717540,1705351832260,-61.17408291,0.00023885,2]
[311717541,1705351832289,-90.09591709,0.00023885,2]
[311717542,1705351832299,-150.95,0.00023922,2]
[311717543,1705351832308,-153.53,0.00023973,2]
[311717544,1705351832317,-36.88895776,0.00023997,2]
[311717545,1705351832329,-114.38104224,0.00023997,2]
[311717546,1705351832339,-176.2,0.00024,2]
[311717547,1705351832348,-151.27,0.00024109,2]
[311717548,1705351832358,-150.95,0.00024187,2]
[311717549,1705351832368,-7.32507846,0.00024208,2]
[311717550,1705351832449,-146.20492154,0.00024208,2]
[311717551,1705351832459,-151.27,0.00024221,2]
[311717552,1705351832468,-602.52507846,0.00024252,2]
[311717553,1705351832480,-588.94638895,0.00024252,2]
[311717554,1705351832514,-8373.26853259,0.00024252,2]
[311717555,1705351832523,-167.0,0.00024297,2]
[311717556,1705351832533,-151.27,0.00024333,2]
[311717557,1705351832542,-1849.28,0.0002444,2]
[311717558,1705351832551,-153.53,0.00024443,2]
[311717559,1705351832561,-151.27,0.00024445,2]
[311717560,1705351832571,-150.95,0.00024451,2]
[311717561,1705351832580,-351.98,0.00024548,2]
[311717562,1705351832589,-151.27,0.00024557,2]
[311717563,1705351832598,-250.0,0.00024658,2]
[311717564,1705351832608,-151.27,0.00024669,2]
[311717565,1705351832617,-153.53,0.00024678,2]
[311717566,1705351832626,-150.95,0.00024716,2]
[311717567,1705351832636,-151.27,0.00024782,2]
[311717568,1705351832645,-5909.5063,0.00024799,2]
[311717569,1705351832655,-294.6467,0.000248,2]
[311717570,1705351832664,-262.5,0.00024866,2]
[311717571,1705351832674,-151.27,0.00024894,2]
[311717572,1705351832683,-16435.2285,0.00024899,2]
[311717573,1705351832692,-6217.8864,0.00024899,2]
[311717574,1705351832702,-153.0,0.00024899,2]
[311717575,1705351832711,-1246.10406846,0.00024899,2]
[311717576,1705351832719,-363.35937051,0.00024899,2]
[311717577,1705351832729,-393.94279388,0.00024899,2]
[311717578,1705351832738,-158.48766211,0.00024899,2]